fUSD/lending_fUSD_20251103
["ID","MTS","AMOUNT","RATE_DAILY","PERIOD"]
[392922117,1762143686572,-10000.01,0.000143,2]
[392922118,1762143686720,-10000.01,0.000143,2]
[392922119,1762143686826,-10000.01,0.000143,2]
[392922120,1762143686963,-10000.01,0.000143,2]
[392922121,1762143695294,-10000.01,0.000143,2]
[392922122,1762143695345,-10000.01,0.000143,2]
[392922123,1762143695493,-10000.01,0.000143,2]
[392922124,1762143695592,-10000.01,0.000143,2]
[392922125,1762143695647,-2527.383,0.0001421,2]
[392922126,1762143695658,-7472.627,0.000143,2]
[392922127,1762143695732,-158.304,0.0001421,2]
[392922128,1762143695790,-9683.402,0.000143,2]
[392922129,1762143695828,-10000.01,0.000143,2]
[392922130,1762143695899,-10000.01,0.000143,2]
[392922131,1762143695977,-215.60324455,0.000143,2]
[392922132,1762143696018,-4384.32524455,0.000143,2]
[392922133,1762143696047,-1231.3595109,0.000143,2]
[392922143,1762143707735,-250.4602882,0.000145,2]
[392922144,1762143709583,484.99692063,0.000144,2]
[392922145,1762143710033,184.24774086,0.00014449,2]
[392922146,1762143710342,-200.0,0.000145,2]
[392922147,1762143710946,619.59897045,0.00014355,2]
[392922148,1762143711931,502.22066,0.0001445,2]
[392922149,1762143712023,502.22065,0.0001445,2]
[392922150,1762143712048,-215.60324455,0.000145,2]
[392922151,1762143712143,502.22066,0.0001445,2]
[392922152,1762143712217,502.22066,0.0001448,2]
[392922153,1762143721252,300.0,0.00014499,2]
[392922154,1762143737259,2000.0,0.00014,2]
[392922155,1762143739270,500.0,0.00013,2]
[392922156,1762143739308,515.94568323,0.00013,2]
[392922157,1762143740073,500.0,0.00013,2]
[392922158,1762143740187,500.0,0.00012011,2]
[392922159,1762143740328,538.11314703,0.00012011,2]
[392922160,1762143749216,577.21005565,0.00013,2]
[392922161,1762143749372,500.0,0.00013,2]
[392922162,1762143749410,501.44912319,0.00013,2]
[392922163,1762143754881,417.49284314,0.00013,2]
[392922164,1762143758883,519.33353199,0.00013,2]
[392922165,1762143759790,-195.0,0.000144,2]
[392922166,1762143784149,-6.20810983,0.000144,2]
[392922167,1762143784173,-150.30189017,0.00014427,2]
[392922168,1762143796088,6142.95,0.00013823,2]
[392922169,1762143813454,-186.74251173,0.00014345,2]
[392922170,1762143909913,150.0,0.00013044,2]
[392922171,1762143909958,150.0,0.00013205,2]
[392922172,1762143910032,150.0,0.00013366,2]
[392922173,1762143910094,150.0,0.00013527,2]
[392922174,1762143910164,150.0,0.00013688,2]
[392922175,1762143910240,150.0,0.00013849,2]
[392922176,1762143910307,150.0,0.0001401,2]
[392922177,1762143910374,150.0,0.00014171,2]
[392922178,1762143910638,150.0,0.00013044,2]
[392922179,1762143910717,150.0,0.00013285,2]
[392922180,1762143910778,150.0,0.00013527,2]
[392922181,1762143910844,150.0,0.00013768,2]
[392922182,1762143910884,150.0,0.0001401,2]
[392922183,1762143910937,150.0,0.00014252,2]
[392922184,1762143911131,150.0,0.00013044,2]
[392922185,1762143911157,-331.418428,0.00014271,2]
[392922186,1762143911194,150.0,0.00013205,2]
[392922187,1762143911251,150.0,0.00013366,2]
[392922188,1762143911330,150.0,0.00013527,2]
[392922189,1762143911392,150.0,0.00013688,2]
[392922190,1762143911462,150.0,0.00013849,2]
[392922191,1762143911532,150.0,0.0001401,2]
[392922192,1762143911607,150.0,0.00014171,2]
[392922193,1762143915790,150.0,0.00013044,2]
[392922194,1762143917161,150.0,0.00013044,2]
[392922195,1762143919290,257.06,9e-05,2]
[392922196,1762143919314,2283.64950232,9e-05,2]
[392922197,1762143921159,150.0,0.00013044,2]
[392922198,1762143922078,2527.49306128,0.00014,2]
[392922199,1762143927345,150.0,0.00013044,2]
[392922200,1762143927945,157.14661964,0.00013044,2]
[392922201,1762143930315,150.0,0.00013044,2]
[392922202,1762143930359,150.0,0.00013768,2]
[392922203,1762143932803,150.0,0.00013044,2]
[392922204,1762143934475,150.0,0.00013044,2]
[392922205,1762143934566,150.0,0.00013768,2]
[392922206,1762143934614,3981.72081676,0.00013779,2]
[392922207,1762143934640,8815.62918324,0.00013779,2]
[392922208,1762143935915,1184.38081676,9e-05,2]
[392922209,1762143935943,853.66062244,9e-05,2]
[392922210,1762143938226,440.54198734,0.0001434,3]
[392922211,1762143953377,500.0,0.0001434,3]
[392922212,1762143953455,10000.01,0.0001399,2]
[392922213,1762143961242,3749.23001647,8e-05,2]
[392922214,1762143962168,-595.43546476,0.0001399,2]
[392922215,1762143968265,500.0,0.0001434,3]
[392922216,1762143975019,711.638194,0.0001392,2]
[392922217,1762143980357,400.62717987,0.00013573,2]
[392922218,1762143980379,6220.0112282,0.00013573,2]
[392922219,1762143980399,6220.0112282,0.00013573,2]
[392922220,1762143980420,6220.0112282,0.00013573,2]
[392922221,1762143980688,6220.0112282,0.00013573,2]
[392922222,1762143980713,6220.0112282,0.00013573,2]
[392922223,1762143980735,445.24667913,0.00013573,2]
[392922224,1762143982372,500.0,0.0001434,3]
[392922225,1762143993583,-237.21898313,0.0001399,2]
[392922226,1762144041760,5774.76454907,0.0001354,2]
[392922227,1762144041784,1722.04545093,0.0001354,2]
[392922229,1762144049806,500.0,0.00013,2]
[392922230,1762144063020,2195.21217614,0.00013,2]
[392922231,1762144080618,-300.0,0.00013989,2]
[392922232,1762144080648,-150.0,0.00013989,2]
[392922233,1762144080680,-1070.0,0.00013989,2]
[392922234,1762144086609,304.66893227,0.000125,2]
[392922235,1762144086647,247.56446448,0.000135,2]
[392922236,1762144114346,1284.85318837,0.0001,2]
[392922242,1762144153704,343.1,0.00013449,2]
[392922243,1762144201433,1200.0,0.00013989,2]
[392922244,1762144201473,300.0,0.00013989,2]
[392922245,1762144201512,300.0,0.00013989,2]
[392922246,1762144201554,300.0,0.00013989,2]
[392922249,1762144202714,150.0,0.00013989,2]
[392922250,1762144213650,150.0,0.00013408,2]
[392922259,1762144231425,-489.11628392,0.0001399,2]
[392922260,1762144231437,-25991.17050751,0.0001399,2]
[392922261,1762144231448,-16505.04457655,0.0001399,2]
[392922262,1762144231460,-267.35,0.0001399,2]
[392922263,1762144231471,-367.44,0.0001399,2]
[392922264,1762144231600,-37027.71089648,0.0001399,2]
[392922265,1762144231610,-300.0,0.00013994,2]
[392922266,1762144231620,-710.11579561,0.00013994,2]
[392922267,1762144231630,-893.32505766,0.00013996,2]
[392922268,1762144231639,-195.0,0.00013999,2]
[392922269,1762144231648,-613.87900628,0.00013999,2]
[392922270,1762144231658,-250.0,0.00014008,2]
[392922271,1762144231667,-195.0,0.00014022,2]
[392922272,1762144231676,-254.8313588,0.00014025,2]
[392922273,1762144231685,-368.49548173,0.00014058,2]
[392922274,1762144231696,-224.02845156,0.0001406,2]
[392922275,1762144231705,-300.0,0.0001413,2]
[392922276,1762144231715,-331.418428,0.00014255,2]
[392922277,1762144231726,-4729.59690778,0.00014286,2]
[392922290,1762144237491,-1158.40309222,0.00014286,2]
[392922291,1762144237502,-179.0,0.000143,2]
[392922292,1762144237512,-150.0,0.00014332,2]
[392922293,1762144237522,-150.0,0.00014332,2]
[392922294,1762144237531,-399.81346079,0.00014341,2]
[392922295,1762144237542,-702.41115841,0.00014341,2]
[392922296,1762144237552,-1382.163372,0.00014343,2]
[392922297,1762144237561,-5557.45312544,0.00014345,2]
[392922298,1762144237572,-1396.78893979,0.00014345,2]
[392922299,1762144237582,-1154.83286892,0.00014345,2]
[392922553,1762144240285,-1.6e-07,0.00014345,2]
[392922555,1762144240296,-7433.03389238,0.00014345,2]
[392922557,1762144240307,-422.24499993,0.00014345,2]
[392922559,1762144240318,-3092.2805925,0.00014345,2]
[392922561,1762144240329,-3108.7483,0.00014345,2]
[392922563,1762144240343,-12162.31235045,0.00014345,2]
[392922565,1762144240352,-455.9055,0.0001435,2]
[392922567,1762144240361,-7253.4833504,0.0001439,2]
[392922569,1762144240370,-11564.419,0.000144,2]
[392922571,1762144240379,-164.99245296,0.000144,2]
[392922573,1762144240388,-1000.0,0.000144,2]
[392922575,1762144240397,-265.34293887,0.000144,2]
[392922576,1762144240407,-336.55292994,0.000144,2]
[392922578,1762144240415,-524.46659852,0.00014473,2]
[392922580,1762144240425,-225.37,0.00014489,2]
[392922582,1762144240434,-173.85278369,0.0001449,2]
[392922584,1762144240443,-159.04613678,0.0001449,2]
[392922586,1762144240452,-151.0,0.00014491,2]
[392922588,1762144240461,-151.0,0.00014491,2]
[392922590,1762144240469,-151.0,0.00014491,2]
[392922592,1762144240478,-151.0,0.00014491,2]
[392922593,1762144240487,-151.0,0.00014491,2]
[392922595,1762144240497,-250.0,0.00014491,2]
[392922597,1762144240506,-623.58710448,0.00014491,2]
[392922599,1762144240514,-151.0,0.00014491,2]
[392922601,1762144240523,-250.0,0.00014491,2]
[392922603,1762144240532,-151.0,0.00014491,2]
[392922605,1762144240541,-250.0,0.00014491,2]
[392922607,1762144240550,-151.0,0.00014491,2]
[392922608,1762144240559,-250.0,0.00014491,2]
[392922610,1762144240568,-151.0,0.00014491,2]
[392922612,1762144240577,-200.0,0.00014491,2]
[392922614,1762144240586,-250.0,0.00014491,2]
[392922616,1762144240595,-151.0,0.00014491,2]
[392922618,1762144240604,-250.0,0.00014491,2]
[392922620,1762144240613,-151.0,0.00014491,2]
[392922622,1762144240622,-250.0,0.00014491,2]
[392922624,1762144240631,-151.0,0.00014491,2]
[392922625,1762144240640,-320.72918214,0.00014491,2]
[392922627,1762144240649,-151.0,0.00014491,2]
[392922629,1762144240658,-151.0,0.00014491,2]
[392922631,1762144240667,-151.0,0.00014491,2]
[392922633,1762144240675,-156.77961209,0.00014491,2]
[392922635,1762144240684,-151.0,0.00014491,2]
[392922637,1762144240693,-151.0,0.00014491,2]
[392922638,1762144240705,-151.0,0.00014491,2]
[392922640,1762144240714,-151.0,0.00014491,2]
[392922642,1762144240723,-322.6107,0.00014491,2]
[392922644,1762144240735,-151.0,0.00014491,2]
[392922646,1762144240744,-151.0,0.00014491,2]
[392922648,1762144240753,-151.0,0.00014491,2]
[392922650,1762144240762,-151.0,0.00014491,2]
[392922652,1762144240774,-500.0,0.00014491,2]
[392922654,1762144240783,-151.0,0.00014491,2]
[392922656,1762144240793,-151.0,0.00014491,2]
[392922658,1762144240802,-500.0,0.00014491,2]
[392922660,1762144240811,-292.37488359,0.00014491,2]
[392922661,1762144240820,-151.0,0.00014491,2]
[392922663,1762144240830,-200.0,0.00014491,2]
[392922665,1762144240839,-500.0,0.00014491,2]
[392922667,1762144240848,-500.0,0.00014491,2]
[392922669,1762144240857,-500.0,0.00014491,2]
[392922670,1762144240866,-500.0,0.00014491,2]
[392922671,1762144240874,-500.0,0.00014491,2]
[392922672,1762144240885,-496.47127164,0.00014491,2]
[392922673,1762144240894,-500.0,0.00014491,2]
[392922674,1762144240903,-321.5585805,0.00014491,2]
[392922675,1762144240911,-500.0,0.00014491,2]
[392922676,1762144240920,-500.0,0.00014491,2]
[392922677,1762144240929,-500.0,0.00014491,2]
[392922678,1762144240938,-500.0,0.00014491,2]
[392922679,1762144240947,-500.0,0.00014491,2]
[392922680,1762144240955,-500.0,0.00014491,2]
[392922681,1762144240964,-500.0,0.00014491,2]
[392922682,1762144240973,-974.4593,0.00014491,2]
[392922683,1762144240982,-500.0,0.00014491,2]
[392922685,1762144240991,-151.0,0.00014491,2]
[392922687,1762144241001,-500.0,0.00014491,2]
[392922689,1762144241010,-500.0,0.00014491,2]
[392922691,1762144241020,-151.0,0.00014491,2]
[392922693,1762144241032,-546.81320183,0.00014491,2]
[392922695,1762144241041,-500.0,0.00014491,2]
[392922697,1762144241050,-151.0,0.00014491,2]
[392922699,1762144241060,-500.0,0.00014491,2]
[392922701,1762144241069,-151.0,0.00014491,2]
[392922703,1762144241079,-620.0,0.00014491,2]
[392922705,1762144241089,-500.0,0.00014491,2]
[392922707,1762144241098,-151.0,0.00014491,2]
[392922709,1762144241107,-500.0,0.00014491,2]
[392922712,1762144241116,-151.0,0.00014491,2]
[392922714,1762144241129,-500.0,0.00014491,2]
[392922716,1762144241138,-151.0,0.00014491,2]
[392922718,1762144241147,-500.0,0.00014491,2]
[392922720,1762144241158,-151.0,0.00014491,2]
[392922722,1762144241166,-586.31664217,0.00014491,2]
[392922724,1762144241175,-151.0,0.00014491,2]
[392922726,1762144241184,-151.0,0.00014491,2]
[392922728,1762144241194,-151.0,0.00014491,2]
[392922730,1762144241203,-151.0,0.00014491,2]
[392922733,1762144241212,-151.0,0.00014491,2]
[392922735,1762144241222,-500.0,0.00014491,2]
[392922737,1762144241231,-151.0,0.00014491,2]
[392922739,1762144241240,-500.0,0.00014491,2]
[392922741,1762144241249,-151.0,0.00014491,2]
[392922743,1762144241259,-500.0,0.00014491,2]
[392922745,1762144241268,-151.0,0.00014491,2]
[392922747,1762144241278,-210.86076522,0.00014491,2]
[392922749,1762144241287,-239.84119403,0.00014491,2]
[392922751,1762144241296,-200.0,0.00014491,2]
[392922753,1762144241305,-224.43183866,0.00014493,2]
[392922755,1762144241314,-150.0,0.00014493,2]
[392922757,1762144241324,-150.0,0.00014493,2]
[392922759,1762144241332,-198.67101137,0.00014493,2]
[392922761,1762144241341,-154.52795538,0.00014493,2]
[392922763,1762144241350,-150.0,0.00014493,2]
[392922765,1762144241359,-150.0,0.00014493,2]
[392922767,1762144241369,-150.0,0.00014493,2]
[392922769,1762144241378,-150.0,0.00014493,2]
[392922771,1762144241387,-500.0,0.00014499,2]
[392922773,1762144241396,-500.0,0.00014499,2]
[392922775,1762144241406,-500.0,0.00014499,2]
[392922777,1762144241415,-500.0,0.00014499,2]
[392922779,1762144241424,-500.0,0.00014499,2]
[392922781,1762144241433,-500.0,0.00014499,2]
[392922783,1762144241442,-500.0,0.00014499,2]
[392922785,1762144241451,-1568878.13839026,0.000145,2]
[392922787,1762144241462,-5777.1563059,0.000145,2]
[392922789,1762144241471,-16437.8199052,0.000145,2]
[392922791,1762144241480,-77018.4475875,0.000145,2]
[392922793,1762144241488,-8269.65331148,0.000145,2]
[392922796,1762144241498,-159.32460031,0.000145,2]
[392922798,1762144241510,-200.0,0.000145,2]
[392922800,1762144241519,-399.08466734,0.000145,2]
[392922802,1762144241529,-1224.9,0.000145,2]
[392922803,1762144241538,-200.0,0.000145,2]
[392922804,1762144241547,-578.20924308,0.000145,2]
[392922805,1762144241557,-698.05,0.000145,2]
[392922806,1762144241566,-698.05,0.000145,2]
[392922807,1762144241575,-1000.0,0.000145,2]
[392922808,1762144241584,-698.05,0.000145,2]
[392922809,1762144241593,-200.0,0.000145,2]
[392922811,1762144241602,-605.42,0.000145,2]
[392922813,1762144241611,-300.0,0.000145,2]
[392922815,1762144241620,-300.0,0.000145,2]
[392922817,1762144241629,-167.557449,0.000145,2]
[392922819,1762144241638,-157.460006,0.00014567,2]
[392922821,1762144241648,-155.160875,0.00014567,2]
[392922823,1762144241656,-160.648432,0.00014567,2]
[392922825,1762144241665,-297.989055,0.00014567,2]
[392922827,1762144241674,-160.506746,0.00014567,2]
[392922829,1762144241684,-151.153929,0.00014567,2]
[392922831,1762144241694,-153.447243,0.00014567,2]
[392922833,1762144241704,-154.945711,0.00014567,2]
[392922835,1762144241714,-151.0,0.00014567,2]
[392922837,1762144241723,-169.547568,0.00014567,2]
[392922840,1762144241732,-151.140093,0.00014567,2]
[392922842,1762144241743,-151.0,0.00014567,2]
[392922843,1762144241752,-199.887093,0.00014567,2]
[392922846,1762144241761,-153.50678,0.00014567,2]
[392922848,1762144241773,-280.802703,0.00014567,2]
[392922850,1762144241783,-156.67264,0.00014567,2]
[392922852,1762144241792,-717.0,0.00014597,2]
[392922854,1762144241802,-642.31,0.00014597,2]
[392922856,1762144241810,-4950.44,0.000146,2]
[392922858,1762144241819,-9999.99,0.000146,2]
[392922860,1762144241828,-9999.99,0.000146,2]
[392922862,1762144241837,-1550.0,0.000146,2]
[392922864,1762144241847,-166.66,0.00014621,2]
[392922866,1762144241855,-150.99,0.00014621,2]
[392922868,1762144241864,-150.99,0.00014621,2]
[392922870,1762144241873,-4187.41,0.00014621,2]
[392922872,1762144241882,-151.0,0.00014621,2]
[392922874,1762144241894,-151.0,0.00014621,2]
[392922876,1762144241903,-157.070475,0.00014621,2]
[392922878,1762144241912,-154.81048,0.00014621,2]
[392922880,1762144241922,-154.624385,0.00014621,2]
[392922882,1762144241931,-151.0,0.00014621,2]
[392922884,1762144241940,-166.330119,0.00014621,2]
[392922886,1762144241949,-153.323654,0.00014621,2]
[392922888,1762144241958,-151.0,0.00014621,2]
[392922891,1762144241967,-156.732498,0.00014621,2]
[392922893,1762144241977,-155.730482,0.00014621,2]
[392922895,1762144241986,-153.822368,0.00014621,2]
[392922897,1762144241995,-161.630193,0.00014621,2]
[392922898,1762144242004,-174.106093,0.00014621,2]
[392922901,1762144242013,-156.197754,0.00014621,2]
[392922903,1762144242022,-157.302206,0.00014621,2]
[392922905,1762144242033,-160.339452,0.00014621,2]
[392922907,1762144242042,-151.0,0.00014621,2]
[392922909,1762144242051,-161.218743,0.00014621,2]
[392922911,1762144242060,-155.83364,0.00014621,2]
[392922913,1762144242069,-158.40566,0.00014621,2]
[392922915,1762144242078,-156.207327,0.00014621,2]
[392922917,1762144242087,-151.0,0.00014621,2]
[392922919,1762144242096,-151.0,0.00014621,2]
[392922921,1762144242105,-161.308009,0.00014621,2]
[392922923,1762144242114,-156.153089,0.00014621,2]
[392922925,1762144242123,-160.073116,0.00014621,2]
[392922927,1762144242133,-156.538906,0.00014621,2]
[392922929,1762144242142,-161.270951,0.00014621,2]
[392922931,1762144242151,-151.0,0.00014621,2]
[392922933,1762144242160,-156.998778,0.00014621,2]
[392922935,1762144242170,-160.131203,0.00014621,2]
[392922937,1762144242178,-151.0,0.00014621,2]
[392922939,1762144242187,-162.126083,0.00014621,2]
[392922941,1762144242196,-154.828583,0.00014621,2]
[392922943,1762144242206,-157.023097,0.00014621,2]
[392922945,1762144242215,-156.232397,0.00014621,2]
[392922947,1762144242224,-151.0,0.00014621,2]
[392922949,1762144242233,-156.37801,0.00014621,2]
[392922951,1762144242242,-151.0,0.00014621,2]
[392922953,1762144242252,-156.249014,0.00014621,2]
[392922955,1762144242261,-154.032304,0.00014621,2]
[392922957,1762144242275,-151.0,0.00014621,2]
[392922959,1762144242288,-158.505484,0.00014621,2]
[392922962,1762144242298,-151.0,0.00014621,2]
[392922965,1762144242307,-164.726011,0.00014621,2]
[392922967,1762144242317,-160.192712,0.00014621,2]
[392922969,1762144242326,-151.0,0.00014621,2]
[392922971,1762144242335,-151.0,0.00014621,2]
[392922973,1762144242344,-154.827983,0.00014621,2]
[392922975,1762144242354,-156.207732,0.00014621,2]
[392922977,1762144242363,-256.515134,0.00014621,2]
[392922979,1762144242372,-200.0,0.00014644,2]
[392922982,1762144242382,-200.0,0.00014645,2]
[392922984,1762144242391,-200.0,0.00014645,2]
[392922986,1762144242400,-222.0,0.00014651,2]
[392922988,1762144242410,-7.96324974,0.00014674,2]
[392922990,1762144242420,-588.0,0.00014674,2]
[392922993,1762144242429,-4806.79043087,0.00014678,2]
[392922995,1762144242438,-444.0,0.00014709,2]
[392922997,1762144242447,-200.0,0.0001471,2]
[392922999,1762144242456,-321.46,0.00014711,2]
[392923001,1762144242465,-151.13,0.00014714,2]
[392923003,1762144242474,-333.0,0.00014724,2]
[392923005,1762144242483,-151.0,0.00014733,2]
[392923007,1762144242492,-193.981396,0.00014733,2]
[392923009,1762144242501,-4806.79043087,0.00014733,2]
[392923011,1762144242510,-4056.0,0.00014733,2]
[392923013,1762144242519,-555.0,0.00014738,2]
[392923015,1762144242530,-717.0,0.00014739,2]
[392923017,1762144242540,-717.0,0.0001475,2]
[392923019,1762144242549,-1224.9,0.00014774,2]
[392923021,1762144242558,-1152.13295732,0.00014775,2]
[392923023,1762144242567,-5412.0,0.00014784,2]
[392923025,1762144242576,-4806.79043087,0.00014789,2]
[392923027,1762144242584,-200.0,0.0001479,2]
[392923029,1762144242593,-200.0,0.00014791,2]
[392923031,1762144242602,-200.0,0.00014791,2]
[392923033,1762144242611,-1197.0,0.00014791,2]
[392923035,1762144242620,-476.74,0.000148,2]
[392923037,1762144242629,-655.08,0.000148,2]
[392923038,1762144242639,-476.74,0.000148,2]
[392923041,1762144242650,-1097.31,0.000148,2]
[392923043,1762144242659,-476.83,0.000148,2]
[392923045,1762144242669,-1395.08,0.000148,2]
[392923047,1762144242679,-7451.75222444,0.000148,2]
[392923049,1762144242688,-200.0,0.00014818,2]
[392923051,1762144242703,-200.0,0.00014829,2]
[392923053,1762144242712,-200.0,0.00014839,2]
[392923055,1762144242721,-4806.79043087,0.00014844,2]
[392923057,1762144242731,-609.068,0.00014847,2]
[392923059,1762144242741,-821.964,0.00014847,2]
[392923061,1762144242750,-578.109,0.00014847,2]
[392923063,1762144242759,-6653.0,0.00014847,2]
[392923065,1762144242768,-321.46,0.00014848,2]
[392923067,1762144242784,-336.55292994,0.00014893,2]
[392923069,1762144242793,-500.0,0.00014899,2]
[392923071,1762144242802,-476.83,0.000149,2]
[392923073,1762144242812,-476.83,0.000149,2]
[392923075,1762144242821,-952.94,0.000149,2]
[392923078,1762144242830,-485.07,0.000149,2]
[392923080,1762144242839,-942.29,0.000149,2]
[392923081,1762144242848,-554.11,0.000149,2]
[392923084,1762144242857,-421.38,0.000149,2]
[392923085,1762144242867,-4806.79043087,0.000149,2]
[392923088,1762144242876,-153.31016045,0.000149,2]
[392923090,1762144242885,-1938.75141664,0.000149,2]
[392923092,1762144242894,-221.9321324,0.000149,2]
[392923093,1762144242902,-269.98600323,0.00014901,2]
[392923095,1762144242908,-1702.0,0.00014912,2]
[392923098,1762144242917,-200.0,0.00014933,2]
[392923101,1762144242925,-200.0,0.00014938,2]
[392923104,1762144242934,-200.0,0.00014939,2]
[392923107,1762144242944,-200.0,0.00014939,2]
[392923109,1762144242954,-1599.454,0.00014948,2]
[392923111,1762144242962,-1317.438,0.00014948,2]
[392923113,1762144242971,-1276.496,0.00014948,2]
[392923115,1762144242982,-821.0,0.00014948,2]
[392923117,1762144242991,-907.374,0.00014948,2]
[392923119,1762144242999,-1187.0,0.00014948,2]
[392923121,1762144243009,-500.0,0.00014958,2]
[392923123,1762144243018,-500.0,0.00014958,2]
[392923125,1762144243029,-500.0,0.00014958,2]
[392923127,1762144243038,-562.40071734,0.00014958,2]
[392923129,1762144243047,-500.4116034,0.00014973,2]
[392923131,1762144243056,-500.82683308,0.00014973,2]
[392923133,1762144243065,-500.0,0.00014973,2]
[392923135,1762144243076,-500.0,0.00014973,2]
[392923137,1762144243085,-500.0,0.00014973,2]
[392923139,1762144243094,-500.0,0.00014973,2]
[392923141,1762144243103,-504.81573234,0.00014973,2]
[392923143,1762144243112,-500.0,0.00014973,2]
[392923145,1762144243121,-501.54995099,0.00014973,2]
[392923147,1762144243130,-500.0,0.00014973,2]
[392923149,1762144243139,-500.0,0.00014973,2]
[392923151,1762144243149,-500.0,0.00014973,2]
[392923154,1762144243158,-500.51724551,0.00014973,2]
[392923156,1762144243167,-500.0,0.00014973,2]
[392923158,1762144243176,-205.8133271,0.00014973,2]
[392923160,1762144243185,-500.0,0.00014973,2]
[392923162,1762144243194,-501.12470574,0.00014973,2]
[392923164,1762144243203,-500.0,0.00014973,2]
[392923166,1762144243213,-500.0,0.00014973,2]
[392923168,1762144243222,-500.0,0.00014973,2]
[392923170,1762144243231,-171.36502261,0.00014973,2]
[392923172,1762144243241,-503.03151573,0.00014973,2]
[392923174,1762144243250,-13227.42214846,0.0001498,2]
[392923176,1762144243259,-321.46,0.00014985,2]
[392923178,1762144243268,-200.0,0.00014988,2]
[392923180,1762144243279,-601.3439696,0.0001499,2]
[392923182,1762144243288,-173.85278369,0.0001499,2]
[392923184,1762144243298,-151.0,0.00014998,2]
[392923186,1762144243307,-152.554817,0.00014998,2]
[392923188,1762144243316,-151.0,0.00014998,2]
[392923190,1762144243325,-151.0,0.00014998,2]
[392923192,1762144243334,-151.628827,0.00014998,2]
[392923194,1762144243343,-156.563651,0.00014998,2]
[392923196,1762144243352,-158.727089,0.00014998,2]
[392923198,1762144243361,-155.394837,0.00014998,2]
[392923200,1762144243370,-151.0,0.00014998,2]
[392923202,1762144243379,-153.773392,0.00014998,2]
[392923204,1762144243389,-157.383384,0.00014998,2]
[392923206,1762144243398,-167.204088,0.00014998,2]
[392923208,1762144243407,-154.338905,0.00014998,2]
[392923210,1762144243416,-151.0,0.00014998,2]
[392923213,1762144243426,-151.0,0.00014998,2]
[392923215,1762144243445,-154.45569,0.00014998,2]
[392923217,1762144243455,-166.436259,0.00014998,2]
[392923219,1762144243464,-161.975765,0.00014998,2]
[392923221,1762144243474,-182.778744,0.00014998,2]
[392923223,1762144243483,-158.075629,0.00014998,2]
[392923225,1762144243493,-251.72069534,0.00014999,2]
[392923227,1762144243503,-167.39864793,0.00014999,2]
[392923229,1762144243512,-268.24179502,0.00014999,2]
[392923231,1762144243521,-150.0,0.00014999,2]
[392923234,1762144243533,-296.45620748,0.00014999,2]
[392923236,1762144243543,-152.29378616,0.00014999,2]
[392923238,1762144243551,-152.27433908,0.00014999,2]
[392923240,1762144243560,-150.0,0.00014999,2]
[392923242,1762144243569,-151.53863849,0.00014999,2]
[392923244,1762144243579,-150.0,0.00014999,2]
[392923246,1762144243588,-150.0,0.00014999,2]
[392923248,1762144243598,-151.24867933,0.00014999,2]